fUSD/lending_fUSD_20250401
["ID","MTS","AMOUNT","RATE_DAILY","PERIOD"]
[356975903,1743513049092,-1028.55,0.00049315,2]
[356975904,1743513049103,-500.0,0.00049315,120]
[356975905,1743513049112,-500.0,0.00049315,120]
[356975906,1743513049122,-500.0,0.00049315,120]
[356975907,1743513049131,-500.0,0.00049315,120]
[356975908,1743513049141,-500.0,0.00049315,120]
[356975909,1743513049151,-500.0,0.00049315,120]
[356975910,1743513049161,-500.0,0.00049315,120]
[356975911,1743513049171,-500.0,0.00049315,120]
[356975912,1743513049181,-500.0,0.00049315,120]
[356975913,1743513049190,-500.0,0.00049315,120]
[356975914,1743513049199,-500.0,0.00049315,120]
[356975915,1743513049209,-500.0,0.00049315,120]
[356975916,1743513049219,-500.0,0.00049315,120]
[356975917,1743513049228,-500.0,0.00049315,120]
[356975918,1743513049238,-500.0,0.00049315,120]
[356975919,1743513049247,-500.0,0.00049315,120]
[356975920,1743513049257,-500.0,0.00049315,120]
[356975921,1743513049267,-500.0,0.00049315,120]
[356975922,1743513049277,-500.0,0.00049315,2]
[356975923,1743513049287,-500.0,0.00049315,120]
[356975924,1743513049297,-500.0,0.00049315,120]
[356975925,1743513049306,-500.0,0.00049315,120]
[356975926,1743513049316,-500.0,0.00049315,120]
[356975927,1743513049326,-500.0,0.00049315,120]
[356975928,1743513049336,-500.0,0.00049315,120]
[356975929,1743513049348,-500.0,0.00049315,120]
[356975930,1743513049358,-167.473304,0.00049315,120]
[356975931,1743513049369,-500.0,0.00049315,120]
[356975932,1743513049379,-500.0,0.00049315,2]
[356975933,1743513049481,-500.0,0.00049315,120]
[356975934,1743513049491,-534.83649326,0.00049315,120]
[356975935,1743513049501,-500.0,0.00049315,120]
[356975936,1743513049514,-500.0,0.00049315,120]
[356975937,1743513049523,-500.0,0.00049315,120]
[356975938,1743513049534,-500.0,0.00049315,120]
[356975939,1743513049545,-204.87285702,0.00049315,60]
[356975940,1743513049555,-2720.18688641,0.00049344,15]
[356975941,1743513049564,-2800.37407409,0.00049378,4]
[356975942,1743513049574,-151.34,0.00049379,120]
[356975943,1743513049584,-851.2652,0.00049388,2]
[356975944,1743513049596,-1119.40495232,0.00049388,15]
[356975945,1743513049606,-2800.37407409,0.00049389,4]
[356975946,1743513049615,-464.7951,0.00049389,2]
[356975947,1743513049624,-500.0,0.00049389,2]
[356975948,1743513049633,-2800.37407409,0.0004939,4]
[356975949,1743513049643,-500.0,0.00049398,120]
[356975950,1743513049653,-5000.0,0.00049399,120]
[356975951,1743513049663,-213.56751349,0.00049399,27]
[356975952,1743513049672,-500.0,0.000494,5]
[356975953,1743513049683,-504.0,0.000494,10]
[356975954,1743513049693,-257.60139068,0.000494,36]
[356975955,1743513049703,-1119.40495232,0.00049445,15]
[356975956,1743513049712,-2720.18688641,0.00049456,15]
[356975957,1743513049722,-161.67112768,0.00049473,10]
[356975958,1743513049732,-1681.18656469,0.00049477,120]
[356975959,1743513049742,-11201.4962964,0.00049478,4]
[356975960,1743513049751,-3184.937757,0.00049488,120]
[356975961,1743513049760,-2548.565672,0.00049488,120]
[356975962,1743513049769,-180.842479,0.00049488,120]
[356975963,1743513049778,-1000.0,0.00049488,120]
[356975964,1743513049788,-500.0,0.00049488,120]
[356975965,1743513049798,-500.0,0.00049488,120]
[356975966,1743513049807,-640.22,0.00049488,120]
[356975967,1743513049816,-500.0,0.00049488,120]
[356975968,1743513049827,-681.34,0.00049488,120]
[356975969,1743513049836,-500.0,0.00049488,120]
[356975970,1743513049845,-500.0,0.00049488,120]
[356975971,1743513049855,-500.0,0.00049488,120]
[356975972,1743513049864,-500.0,0.00049488,120]
[356975973,1743513049874,-500.0,0.00049488,120]
[356975974,1743513049884,-500.0,0.00049488,120]
[356975975,1743513049894,-500.0,0.00049488,120]
[356975976,1743513049903,-500.0,0.00049488,120]
[356975977,1743513049913,-500.0,0.00049488,120]
[356975978,1743513049922,-500.0,0.00049488,120]
[356975979,1743513049932,-500.0,0.00049488,120]
[356975980,1743513049941,-500.0,0.00049488,120]
[356975981,1743513049951,-500.0,0.00049488,120]
[356975982,1743513049960,-500.0,0.00049488,120]
[356975983,1743513049969,-500.0,0.00049488,7]
[356975984,1743513049979,-500.0,0.00049488,120]
[356975985,1743513049989,-500.0,0.00049488,120]
[356975986,1743513049998,-500.0,0.00049488,120]
[356975987,1743513050007,-500.0,0.00049488,120]
[356975988,1743513050016,-48.4053403,0.00049488,120]
[356975989,1743513050026,-451.5946597,0.00049488,120]
[356975990,1743513050034,-500.0,0.00049488,120]
[356975991,1743513050043,-500.0,0.00049488,120]
[356975992,1743513050052,-350.89306625,0.00049488,120]
[356975993,1743513050192,-551.91721326,0.00049197,21]
[356975994,1743513050201,-500.0,0.00049315,120]
[356975995,1743513050211,-149.10693375,0.00049488,120]
[356975996,1743513050221,-500.0,0.00049488,120]
[356975997,1743513050231,-500.0,0.00049488,120]
[356975998,1743513050240,-500.0,0.00049488,120]
[356975999,1743513050250,-500.0,0.00049488,120]
[356976000,1743513050260,-500.0,0.00049488,120]
[356976001,1743513050269,-500.0,0.00049488,120]
[356976002,1743513050280,-500.0,0.00049488,120]
[356976003,1743513050290,-500.0,0.00049488,120]
[356976004,1743513050300,-500.0,0.00049488,120]
[356976005,1743513050310,-500.0,0.00049488,120]
[356976006,1743513050320,-16211.95585299,0.00049488,7]
[356976043,1743513915014,1466483.70131179,0.00034134,30]
[356976044,1743513941155,-1000.0,0.00015,2]
[356976045,1743513942270,-1000.0,0.00015,2]
[356976046,1743513942879,-1000.0,0.00015,2]
[356976047,1743513943773,-1000.0,0.00015,2]
[356976048,1743513944306,-1000.0,0.00015,2]
[356976049,1743513945111,-1000.0,0.00015,2]
[356976050,1743513945612,-1000.0,0.00015,2]
[356976053,1743514034260,548.03140714,0.0002301,120]
[356976070,1743514232017,-403.90804429,0.0001499,2]
[356976071,1743514232094,-597.66195571,0.0001499,2]
[356976072,1743514232105,-516.50472957,0.0001499,2]
[356976086,1743514237780,-485.06527043,0.0001499,2]
[356976087,1743514237790,-288.30228913,0.00014999,2]
[356976088,1743514237800,-69.29387354,0.00014999,2]
[356976089,1743514237812,-87.98516062,0.00014999,2]
[356976090,1743514237822,-200.42451461,0.00014999,2]
[356976091,1743514237832,-329.82956361,0.00015,2]
[356976105,1743514240143,-884.18371828,0.00015,2]
[356976106,1743514240203,-2512.00950001,0.00015,2]
[356976119,1743514244252,-2328.87588571,0.00015,2]
[356976121,1743514245854,-924.85625087,0.00015,2]
[356976122,1743514245927,-1673.7,0.00015,2]
[356976123,1743514246046,-3184.32743475,0.00015,2]
[356976170,1743514565556,324.43364,0.0002801,30]
[356976171,1743514565599,324.43363,0.0002301,30]
[356976172,1743514571676,-1088.0747546,0.000149,2]
[356976173,1743514571699,-174.13542282,0.000149,2]
[356976174,1743514571721,-629.83043926,0.00014973,2]
[356976175,1743514571742,-3785.29989192,0.0001499,2]
[356976176,1743514571768,-9322.6594914,0.00015,2]
[356976177,1743514710043,176.57851011,0.000147,2]
[356976178,1743514710075,730.075,0.000147,2]
[356976180,1743514871107,324.43363,0.0002385,32]
[356976181,1743514871171,324.43364,0.0002885,42]
[356976182,1743514871214,324.43364,0.0002635,37]
[356976190,1743514916211,176.7777268,0.000148,2]
[356976191,1743514922362,350.0,0.00014936,12]
[356976192,1743515109450,150.0,0.00014866,7]
[356976193,1743515176707,324.43363,0.0002303,30]
[356976194,1743515233795,300.0,0.000149,5]
[356976195,1743515281723,350.0,0.00014886,12]
[356976200,1743515402263,350.0,0.00014886,12]
[356976201,1743515408656,-176.7777268,0.00014873,2]
[356976202,1743515408690,-1838.76490535,0.000149,2]
[356976203,1743515408722,-979.26727914,0.000149,2]
[356976204,1743515408752,-60.49619239,0.000149,2]
[356976223,1743515437876,-113.63923043,0.000149,2]
[356976224,1743515437886,-553.62523188,0.00014973,2]
[356976225,1743515437896,-157.81936981,0.00014973,2]
[356976226,1743515437905,-150.0,0.00014986,2]
[356976227,1743515437915,-4080.02793018,0.00014999,2]
[356976228,1743515437926,-300.0,0.00014999,2]
[356976229,1743515437935,-68394.03250913,0.00015,2]
[356976230,1743515437947,-426.08220333,0.00015,2]
[356976231,1743515437997,-1229.10003012,0.00015,2]
[356976237,1743515440478,-335433.11297874,0.00015,2]
[356976238,1743515440596,-0.02540272,0.00015,2]
[356976496,1743515445942,-8404.4754,0.00015,2]
[356976502,1743515445989,-101946.9810179,0.00015,2]
[356976504,1743515445999,-476956.89313484,0.00015,2]
[356976528,1743515446226,-20279.298613,0.00015,2]
[356977008,1743516098896,251.0,0.00015,3]
[356977010,1743516342970,-66348.82588693,0.00015,2]
[356977011,1743516343005,-350.0,0.000165,12]
[356977012,1743516343039,-350.0,0.000165,12]
[356977013,1743516343074,-350.0,0.000165,12]
[356977014,1743516343110,-800.0,0.00018,2]
[356977015,1743516343143,-800.0,0.00019,3]
[356977016,1743516343175,-281.64456078,0.00019,2]
[356977017,1743516343208,-500.0,0.00019945,2]
[356977018,1743516343242,-800.0,0.0002,4]
[356977047,1743516632309,-854.25476081,0.0002167,2]
[356977048,1743516632321,-757.70112046,0.0002167,2]
[356977049,1743516632474,-3600.48774753,0.0002167,2]
[356977050,1743516632484,-10875.6298558,0.00021685,2]
[356977051,1743516632494,-257.53131285,0.000217,2]
[356977052,1743516632505,-350.0,0.000221,12]
[356977053,1743516632514,-1123.30962669,0.000225,2]
[356977054,1743516632524,-663.77940649,0.000228,2]
[356977055,1743516632534,-418.56062317,0.000228,2]
[356977056,1743516632545,-350.0,0.0002379,12]
[356977057,1743516632555,-350.0,0.0002387,12]
[356977058,1743516632564,-219.0,0.000251,2]
[356977059,1743516632574,-187.13,0.00026849,2]
[356977060,1743516632584,-153.08,0.00026849,2]
[356977061,1743516632594,-250.0,0.00027,2]
[356977062,1743516632603,-5890.27,0.00027,2]
[356977063,1743516632613,-584.06,0.00027997,18]
[356977064,1743516632626,-674.17,0.00028875,2]
[356977065,1743516632636,-300.0,0.00029,2]
[356977066,1743516632646,-1000.0,0.00030793,2]
[356977067,1743516632655,-1500.0,0.00030793,20]
[356977069,1743516632665,-20658.03,0.00030793,2]
[356977070,1743516632674,-350.0,0.00031,2]
[356977072,1743516632684,-200.0,0.00031,2]
[356977074,1743516632694,-674.17,0.00031139,2]
[356977076,1743516632704,-500.0,0.00031178,2]
[356977078,1743516632714,-900.0,0.000316,3]
[356977080,1743516632723,-49687.93587669,0.0003167,40]
[356977082,1743516632734,-187.13,0.00032646,2]
[356977084,1743516632743,-153.08,0.00032646,2]
[356977086,1743516632753,-5553.0,0.000329,5]
[356977088,1743516632763,-400.0,0.00033,2]
[356977090,1743516632772,-674.17,0.00033403,2]
[356977092,1743516632783,-2000.0,0.000335,2]
[356977094,1743516632792,-2000.0,0.000335,2]
[356977095,1743516632801,-200.0,0.00033872,2]
[356977097,1743516632814,-417.47,0.00034127,2]
[356977100,1743516632825,-900.0,0.00034127,2]
[356977101,1743516632836,-200.0,0.00034134,2]
[356977103,1743516632846,-552.11,0.00034134,30]
[356977105,1743516632855,-172.8,0.00034199,120]
[356977107,1743516632865,-164.32,0.00034341,2]
[356977110,1743516632878,-150.0,0.00034548,10]
[356977111,1743516632888,-1000.0,0.00034642,2]
[356977113,1743516632898,-160.6,0.00034852,120]
[356977115,1743516632907,-150.0,0.00034992,7]
[356977117,1743516632917,-450.0,0.00035,2]
[356977119,1743516632926,-157.96,0.00035,2]
[356977121,1743516632936,-200.0,0.000351,2]
[356977123,1743516632945,-23900.0,0.00035152,2]
[356977125,1743516632955,-182.13,0.00035159,2]
[356977127,1743516632964,-476.23,0.00035199,2]
[356977129,1743516632973,-166.66,0.00035327,2]
[356977131,1743516632983,-250.0,0.0003536,2]
[356977133,1743516632992,-332.00932565,0.000356,7]
[356977135,1743516633002,-150.0,0.00035616,2]
[356977137,1743516633011,-674.17,0.00035667,2]
[356977139,1743516633021,-2873.63,0.00035957,2]
[356977141,1743516633030,-2000.0,0.000362,2]
[356977143,1743516633040,-2000.0,0.000362,2]
[356977145,1743516633049,-501.45,0.0003623,5]
[356977147,1743516633059,-249.29,0.00036522,2]
[356977149,1743516633069,-150.0,0.00036804,2]
[356977151,1743516633079,-500.0,0.00037,2]
[356977153,1743516633089,-674.17,0.0003793,2]
[356977155,1743516633098,-150.0,0.00037991,2]
[356977156,1743516633108,-187.13,0.00038443,2]
[356977158,1743516633117,-153.08,0.00038443,2]
[356977160,1743516633129,-1000.0,0.00038491,2]
[356977162,1743516633139,-1786.0,0.000385,7]
[356977164,1743516633149,-500.0,0.00038712,2]
[356977166,1743516633159,-550.0,0.00039,2]
[356977168,1743516633170,-2000.0,0.00039,2]
[356977170,1743516633180,-1000.0,0.00039,2]
[356977172,1743516633190,-150.0,0.00039178,2]
[356977174,1743516633199,-2804.77584663,0.000399,15]
[356977176,1743516633209,-26465.93622734,0.0004,2]
[356977178,1743516633219,-10499.44564456,0.0004,30]
[356977180,1743516633229,-2305.95934199,0.0004,120]
[356977182,1743516633239,-674.17,0.00040194,2]
[356977184,1743516633248,-160.6,0.00040326,120]
[356977186,1743516633257,-150.0,0.00040365,2]
[356977188,1743516633267,-600.0,0.00041,2]
[356977190,1743516633278,-200.0,0.00041,2]
[356977192,1743516633288,-172.0,0.00041,14]
[356977194,1743516633300,-2804.77584659,0.00041011,15]
[356977196,1743516633310,-622.0,0.000411,120]
[356977198,1743516633320,-566.28,0.00041319,120]
[356977200,1743516633331,-150.0,0.00041552,2]
[356977202,1743516633341,-2000.0,0.000417,2]
[356977204,1743516633351,-1000.0,0.000417,2]
[356977206,1743516633361,-1000.0,0.000418,7]
[356977207,1743516633374,-2804.77584659,0.00042122,15]
[356977209,1743516633384,-1000.0,0.0004234,2]
[356977211,1743516633394,-674.17,0.00042458,2]
[356977213,1743516633404,-150.0,0.0004274,2]
[356977215,1743516633415,-650.0,0.00043,2]
[356977218,1743516633426,-172.0,0.00043151,90]
[356977219,1743516633436,-2804.77584659,0.00043233,15]
[356977221,1743516633447,-150.0,0.00043927,2]
[356977223,1743516633457,-2047.32,0.00044,2]
[356977225,1743516633467,-3000.0,0.00044,2]
[356977227,1743516633478,-3000.0,0.00044,2]
[356977229,1743516633488,-3000.0,0.00044,2]
[356977231,1743516633499,-907.82,0.00044,2]
[356977233,1743516633509,-187.13,0.00044239,2]
[356977235,1743516633519,-153.08,0.00044239,2]
[356977237,1743516633529,-2804.77584659,0.00044344,15]
[356977239,1743516633538,-2000.0,0.000444,2]
[356977241,1743516633548,-1017.0,0.00044656,2]
[356977243,1743516633558,-3949.0,0.00044656,2]
[356977245,1743516633567,-151.0,0.00044656,2]
[356977247,1743516633577,-201.81160239,0.00044721,120]
[356977249,1743516633587,-176.90051977,0.00044721,31]
[356977251,1743516633597,-674.17,0.00044722,2]
[356977253,1743516633607,-276.93423797,0.00045,120]
[356977254,1743516633616,-700.0,0.00045,2]
[356977256,1743516633628,-2500.0,0.00045,90]
[356977258,1743516633638,-150.0,0.00045114,2]
[356977260,1743516633648,-173.0,0.00045308,90]
[356977262,1743516633657,-2804.77584659,0.00045456,15]
[356977264,1743516633667,-150.0,0.00045589,10]
[356977266,1743516633676,-160.6,0.00045799,120]
[356977268,1743516633686,-1461.14506497,0.00045899,15]
[356977270,1743516633695,-161.39548801,0.00045899,28]
[356977272,1743516633704,-56525.65,0.00045999,2]
[356977274,1743516633716,-151.0,0.00045999,14]
[356977275,1743516633727,-151.0,0.00045999,14]
[356977277,1743516633736,-1000.0,0.00046189,2]
[356977279,1743516633746,-150.0,0.00046301,2]
[356977281,1743516633755,-1461.14506493,0.00046344,15]
[356977283,1743516633765,-1155.0,0.00046352,7]
[356977285,1743516633775,-476.23,0.00046432,2]
[356977287,1743516633784,-566.28,0.00046484,120]
[356977289,1743516633795,-2804.77584659,0.00046567,15]
[356977291,1743516633805,-1461.14506493,0.00046788,15]
[356977293,1743516633815,-674.17,0.00046986,2]
[356977294,1743516633825,-750.0,0.00047,2]
[356977296,1743516633835,-2000.0,0.000472,2]
[356977298,1743516633844,-1461.14506493,0.00047233,15]
[356977299,1743516633854,-150.0,0.00047488,2]
[356977301,1743516633863,-1017.0,0.00047656,2]
[356977303,1743516633875,-3949.0,0.00047656,2]
[356977305,1743516633885,-151.0,0.00047656,2]
[356977308,1743516633895,-1461.14506493,0.00047677,15]
[356977309,1743516633904,-2804.77584659,0.00047678,15]
[356977311,1743516633913,-464.5705488,0.00048004,4]
[356977313,1743516633923,-1461.14506493,0.00048122,15]
[356977315,1743516633933,-3728.54691063,0.00048242,4]
[356977317,1743516633942,-67113.8443913,0.00048252,4]
[356977319,1743516633952,-151.0,0.00048252,14]
[356977321,1743516633961,-151.0,0.00048252,14]
[356977323,1743516633971,-151.0,0.00048252,14]
[356977325,1743516633980,-152.561549,0.00048252,14]
[356977327,1743516633990,-153.343901,0.00048252,14]
[356977329,1743516633999,-151.0,0.00048252,14]
[356977331,1743516634010,-151.0,0.00048252,14]
[356977333,1743516634020,-151.0,0.00048252,14]
[356977335,1743516634030,-151.0,0.00048252,14]
[356977337,1743516634043,-151.0,0.00048252,14]
[356977339,1743516634055,-151.0,0.00048252,14]
[356977341,1743516634065,-151.0,0.00048252,14]
[356977342,1743516634074,-151.0,0.00048252,14]
[356977343,1743516634084,-151.0,0.00048252,14]
[356977344,1743516634093,-151.0,0.00048252,14]
[356977345,1743516634102,-151.0,0.00048252,14]
[356977347,1743516634111,-151.0,0.00048252,14]
[356977348,1743516634123,-157.843189,0.00048252,14]
[356977349,1743516634132,-151.0,0.00048252,14]
[356977350,1743516634142,-151.0,0.00048252,14]
[356977351,1743516634152,-151.0,0.00048252,14]
[356977352,1743516634162,-151.0,0.00048252,14]
[356977353,1743516634171,-151.0,0.00048252,14]
[356977354,1743516634181,-151.0,0.00048252,14]
[356977355,1743516634191,-2032.957262,0.00048252,14]
[356977356,1743516634201,-151.0,0.00048252,14]
[356977357,1743516634211,-2032.957262,0.00048252,14]
[356977358,1743516634221,-151.0,0.00048252,14]
[356977359,1743516634231,-151.0,0.00048252,14]
[356977360,1743516634240,-151.0,0.00048252,14]
[356977361,1743516634250,-151.0,0.00048252,14]
[356977362,1743516634260,-151.0,0.00048252,14]
[356977363,1743516634269,-278.01202,0.00048252,14]
[356977364,1743516634279,-151.0,0.00048252,14]
[356977365,1743516634289,-151.0,0.00048252,14]
[356977366,1743516634299,-151.0,0.00048252,14]
[356977367,1743516634309,-66172.4352,0.00048262,2]
[356977368,1743516634319,-153.998603,0.00048262,14]
[356977369,1743516634328,-151.0,0.00048262,14]
[356977370,1743516634339,-154.272834,0.00048262,14]
[356977371,1743516634348,-3728.54691063,0.00048342,4]
[356977372,1743516634358,-18642.7345531,0.00048352,4]
[356977373,1743516634367,-7457.09382126,0.00048352,4]
[356977374,1743516634379,-151.0,0.00048352,14]
[356977375,1743516634389,-151.0,0.00048352,14]
[356977376,1743516634398,-151.0,0.00048352,14]
[356977377,1743516634408,-151.0,0.00048352,14]
[356977378,1743516634418,-151.0,0.00048352,14]
[356977379,1743516634427,-151.0,0.00048352,14]
[356977380,1743516634438,-151.0,0.00048352,14]
[356977381,1743516634447,-151.0,0.00048352,14]
[356977382,1743516634457,-151.0,0.00048352,14]
[356977383,1743516634466,-151.0,0.00048352,14]
[356977384,1743516634476,-151.0,0.00048352,14]
[356977385,1743516634486,-151.0,0.00048352,14]
[356977386,1743516634495,-151.0,0.00048352,14]
[356977387,1743516634505,-170.997903,0.00048352,14]
[356977388,1743516634514,-151.0,0.00048352,14]
[356977389,1743516634524,-2032.957262,0.00048352,14]
[356977390,1743516634534,-2032.957262,0.00048352,14]
[356977391,1743516634544,-151.0,0.00048352,14]
[356977392,1743516634553,-151.0,0.00048352,14]
[356977393,1743516634563,-151.0,0.00048352,14]
[356977394,1743516634572,-151.0,0.00048352,14]
[356977395,1743516634582,-151.0,0.00048352,14]
[356977396,1743516634592,-150.0,0.00048362,2]
[356977397,1743516634602,-150.73,0.00048362,2]
[356977398,1743516634726,-643.0,0.00048362,2]
[356977399,1743516634741,-1063.596,0.00048362,2]
[356977400,1743516634752,-2040.0,0.00048362,2]
[356977401,1743516634763,-789.0,0.00048362,2]
[356977402,1743516634772,-1275.0,0.00048362,2]
[356977403,1743516634782,-543.0,0.00048362,2]
[356977404,1743516634792,-908.0,0.00048362,2]
[356977405,1743516634802,-4092.0,0.00048362,2]
[356977406,1743516634813,-1433.0,0.00048362,2]
[356977407,1743516634824,-151.0,0.00048362,14]
[356977408,1743516634834,-198.178766,0.00048362,14]
[356977409,1743516634844,-151.0,0.00048362,14]
[356977410,1743516634854,-151.0,0.00048362,14]
[356977411,1743516634865,-151.0,0.00048362,14]
[356977412,1743516634880,-152.466267,0.00048362,14]
[356977413,1743516634890,-214.616919,0.00048362,14]
[356977414,1743516634900,-151.0,0.00048362,14]
[356977415,1743516634909,-152.865755,0.00048362,14]
[356977416,1743516634919,-151.617424,0.00048362,14]
[356977417,1743516634929,-151.612139,0.00048362,14]
[356977418,1743516634939,-156.363396,0.00048362,14]
[356977419,1743516634949,-152.880165,0.00048362,14]
[356977420,1743516634959,-151.0,0.00048362,14]
[356977421,1743516634969,-151.0,0.00048362,14]
[356977422,1743516634979,-151.0,0.00048362,14]
[356977423,1743516634989,-151.0,0.00048362,14]
[356977424,1743516634999,-151.0,0.00048362,14]
[356977425,1743516635009,-151.0,0.00048362,14]
[356977426,1743516635019,-151.0,0.00048362,14]
[356977427,1743516635028,-151.0,0.00048362,14]
[356977428,1743516635038,-151.0,0.00048362,14]
[356977429,1743516635048,-151.0,0.00048362,14]
[356977430,1743516635057,-151.0,0.00048362,14]
[356977431,1743516635068,-152.506509,0.00048362,14]
[356977432,1743516635078,-151.0,0.00048362,14]
[356977433,1743516635088,-151.0,0.00048362,14]
[356977434,1743516635098,-584.061,0.00048497,83]
[356977435,1743516635107,-166.66,0.00048547,2]
[356977436,1743516635117,-1461.14506493,0.00048566,15]
[356977437,1743516635129,-150.0,0.00048581,7]
[356977438,1743516635139,-151.27732961,0.00048617,7]
[356977439,1743516635149,-150.0,0.00048676,2]
[356977440,1743516635159,-150.0,0.00048689,7]
[356977441,1743516635170,-3728.54691063,0.00048779,4]
[356977442,1743516635180,-2804.77584659,0.00048789,15]
[356977443,1743516635190,-150.0,0.00048791,7]
[356977444,1743516635199,-300.0,0.000488,17]
[356977445,1743516635208,-11185.6407319,0.00048894,4]
[356977446,1743516635218,-700.0,0.000489,17]
[356977447,1743516635228,-500.0,0.00048904,120]
[356977448,1743516635238,-500.0,0.00048904,120]
[356977449,1743516635247,-500.0,0.00048904,120]
[356977450,1743516635257,-500.0,0.00048904,120]
[356977451,1743516635266,-500.0,0.00048904,120]
[356977452,1743516635276,-500.0,0.00048904,120]
[356977453,1743516635286,-500.0,0.00048904,120]
[356977454,1743516635295,-500.0,0.00048904,120]
[356977455,1743516635304,-500.0,0.00048904,120]
[356977456,1743516635313,-500.0,0.00048904,120]
[356977457,1743516635323,-500.0,0.00048904,120]
[356977458,1743516635332,-543.09603278,0.00048904,120]
[356977459,1743516635342,-500.0,0.00048904,120]
[356977460,1743516635351,-500.0,0.00048904,120]
[356977461,1743516635361,-500.0,0.00048904,120]
[356977462,1743516635370,-500.0,0.00048904,120]
[356977463,1743516635383,-500.0,0.00048904,120]
[356977464,1743516635393,-500.0,0.00048904,120]
[356977465,1743516635402,-500.0,0.00048904,120]
[356977466,1743516635412,-500.0,0.00048904,120]
[356977467,1743516635422,-500.0,0.00048904,120]
[356977468,1743516635432,-500.0,0.00048904,120]
[356977469,1743516635441,-500.0,0.00048904,120]
[356977470,1743516635451,-7457.09382126,0.0004898,4]
[356977471,1743516635461,-151.34,0.0004898,120]
[356977472,1743516635470,-153.512513,0.0004899,14]
[356977473,1743516635479,-151.0,0.0004899,14]
[356977474,1743516635489,-151.0,0.0004899,14]
[356977475,1743516635499,-151.0,0.0004899,14]
[356977476,1743516635508,-151.0,0.0004899,14]
[356977477,1743516635518,-151.0,0.0004899,14]
[356977478,1743516635528,-151.0,0.0004899,14]
[356977479,1743516635537,-274.816126,0.0004899,14]
[356977480,1743516635547,-151.0,0.0004899,14]
[356977481,1743516635557,-63385.2974807,0.0004899,4]
[356977482,1743516635567,-151.0,0.0004899,14]
[356977483,1743516635576,-151.0,0.0004899,14]
[356977484,1743516635585,-2032.957262,0.0004899,14]
[356977485,1743516635594,-2032.957262,0.0004899,14]
[356977486,1743516635604,-194.464936,0.0004899,14]
[356977487,1743516635613,-151.0,0.0004899,14]
[356977488,1743516635624,-151.0,0.0004899,14]
[356977489,1743516635634,-63879.10855859,0.00049,3]
[356977490,1743516635643,-27877.91970733,0.00049,10]
[356977491,1743516635652,-199.0,0.00049,120]
[356977492,1743516635662,-199.0,0.00049,90]
[356977493,1743516635671,-198.0,0.00049,60]
[356977494,1743516635681,-800.0,0.00049,2]
[356977495,1743516635692,-198.21,0.00049,30]
[356977496,1743516635701,-1635.53,0.00049,120]
[356977497,1743516635710,-151.0,0.00049,14]
[356977498,1743516635724,-153.271131,0.00049,14]
[356977499,1743516635734,-151.0,0.00049,14]
[356977500,1743516635745,-151.0,0.00049,14]
[356977501,1743516635756,-151.0,0.00049,14]
[356977502,1743516635766,-151.0,0.00049,14]
[356977503,1743516635775,-151.0,0.00049,14]
[356977504,1743516635785,-151.0,0.00049,14]